[Event "*** Titled Tuesday Blitz"]
[Site "Chess.com"]
[Date "2020.01.07"]
[Round "3"]
[White "vanea_03"]
[Black "Olga_Zhuravleva"]
[Result "1-0"]
[WhiteElo "2698"]
[BlackElo "2364"]
[TimeControl "180+2"]
[EndTime "13:40:08 PST"]
[Termination "vanea_03 won by resignation"]

1. d4 {[%clk 0:03:01.9]} 1... g6 {[%clk 0:03:00.3]} 2. e4 {[%clk 0:03:02.6]}
2... Bg7 {[%clk 0:03:01.6]} 3. Nf3 {[%clk 0:03:04.2]} 3... d6 {[%clk 0:03:02.7]}
4. c3 {[%clk 0:03:04.7]} 4... Nc6 {[%clk 0:03:03.2]} 5. Bd3 {[%clk 0:03:03.1]}
5... e5 {[%clk 0:03:03.7]} 6. O-O {[%clk 0:03:04.6]} 6... Bg4 {[%clk 0:03:00.6]}
7. d5 {[%clk 0:02:56.2]} 7... Nce7 {[%clk 0:03:00.3]} 8. h3 {[%clk 0:02:56.9]}
8... Bd7 {[%clk 0:02:59.5]} 9. c4 {[%clk 0:02:57.9]} 9... h6 {[%clk 0:02:57.5]}
10. Nc3 {[%clk 0:02:57.4]} 10... f5 {[%clk 0:02:58.3]} 11. c5 {[%clk 0:02:56.3]}
11... Nf6 {[%clk 0:02:57.5]} 12. cxd6 {[%clk 0:02:54]} 12... cxd6 {[%clk
0:02:58.1]} 13. Nb5 {[%clk 0:02:22.5]} 13... Nxe4 {[%clk 0:02:57]} 14. Na3
{[%clk 0:01:50.1]} 14... Nf6 {[%clk 0:02:52.5]} 15. Bc4 {[%clk 0:01:48.3]} 15...
O-O {[%clk 0:02:50.9]} 16. Nxe5 {[%clk 0:01:48]} 16... dxe5 {[%clk 0:02:47.7]}
17. d6+ {[%clk 0:01:48.8]} 17... Kh7 {[%clk 0:02:47.6]} 18. dxe7 {[%clk
0:01:47]} 18... Qxe7 {[%clk 0:02:49.5]} 19. Be3 {[%clk 0:01:42.8]} 19... a6
{[%clk 0:02:47.6]} 20. Rc1 {[%clk 0:01:39.3]} 20... Bc6 {[%clk 0:02:46.8]} 21.
Bc5 {[%clk 0:01:38.7]} 21... Qc7 {[%clk 0:02:41.8]} 22. Bxf8 {[%clk 0:01:38.4]}
22... Rxf8 {[%clk 0:02:41.6]} 23. Qe2 {[%clk 0:01:34.7]} 23... Qb6 {[%clk
0:02:28.6]} 24. Rfd1 {[%clk 0:01:18.9]} 24... Ne4 {[%clk 0:02:26]} 25. Bd5
{[%clk 0:01:16.4]} 25... Ng3 {[%clk 0:02:03.2]} 26. Qf3 {[%clk 0:01:02]} 26...
Bxd5 {[%clk 0:01:51]} 27. Rxd5 {[%clk 0:00:57.9]} 27... Nh5 {[%clk 0:01:35.1]}
28. Qb3 {[%clk 0:00:49.6]} 28... Qxb3 {[%clk 0:01:10.8]} 29. axb3 {[%clk
0:00:51.5]} 29... Nf4 {[%clk 0:01:09.7]} 30. Rd2 {[%clk 0:00:49.3]} 30... Rf7
{[%clk 0:01:11.1]} 31. Rcd1 {[%clk 0:00:39.6]} 31... e4 {[%clk 0:01:10.8]} 32.
Rd7 {[%clk 0:00:41]} 32... Rxd7 {[%clk 0:00:57.1]} 33. Rxd7 {[%clk 0:00:42.9]}
33... Kg8 {[%clk 0:00:58.7]} 34. Rxb7 {[%clk 0:00:40.7]} 34... Bxb2 {[%clk
0:01:00.2]} 35. Nc4 {[%clk 0:00:41.7]} 35... Bd4 {[%clk 0:00:57.3]} 36. Rd7
{[%clk 0:00:41.6]} 36... Bc5 {[%clk 0:00:51]} 37. Ne5 {[%clk 0:00:42]} 37... g5
{[%clk 0:00:49.3]} 38. Rc7 {[%clk 0:00:27.6]} 38... Bd6 {[%clk 0:00:43.2]} 39.
Rc8+ {[%clk 0:00:28.7]} 39... Kg7 {[%clk 0:00:43.9]} 40. Nc4 {[%clk 0:00:28.7]}
40... Bb4 {[%clk 0:00:42.3]} 41. Ne3 {[%clk 0:00:26.9]} 41... Kf6 {[%clk
0:00:40.4]} 42. g3 {[%clk 0:00:25.9]} 42... Ne2+ {[%clk 0:00:38.4]} 43. Kf1
{[%clk 0:00:26.9]} 43... Nd4 {[%clk 0:00:40]} 44. Nd5+ {[%clk 0:00:27.5]} 44...
Ke5 {[%clk 0:00:38.3]} 45. Nxb4 {[%clk 0:00:29.4]} 45... Nxb3 {[%clk 0:00:39]}
46. Nxa6 {[%clk 0:00:28.4]} 46... f4 {[%clk 0:00:38.9]} 47. gxf4+ {[%clk
0:00:29.7]} 47... gxf4 {[%clk 0:00:40.3]} 48. Re8+ {[%clk 0:00:30.7]} 48... Kf5
{[%clk 0:00:41]} 49. Nb4 {[%clk 0:00:30.5]} 49... Nd2+ {[%clk 0:00:40.8]} 50.
Ke2 {[%clk 0:00:31]} 50... Nb3 {[%clk 0:00:38.8]} 51. Nc6 {[%clk 0:00:30.8]}
51... Nc1+ {[%clk 0:00:36.1]} 52. Kd2 {[%clk 0:00:28.5]} 52... Nb3+ {[%clk
0:00:37.1]} 53. Kc3 {[%clk 0:00:28.6]} 53... Nc1 {[%clk 0:00:37.7]} 54. Re5+
{[%clk 0:00:27.3]} 54... Kf6 {[%clk 0:00:39.1]} 55. Rxe4 {[%clk 0:00:27.3]}
55... Kf5 {[%clk 0:00:40.7]} 56. Re5+ {[%clk 0:00:26.2]} 56... Kf6 {[%clk
0:00:41.3]} 57. Kc2 {[%clk 0:00:26.5]} 57... Na2 {[%clk 0:00:40.7]} 58. Ra5
{[%clk 0:00:27.9]} 1-0

[Event "*** Titled Tuesday Blitz"]
[Site "Chess.com"]
[Date "2020.01.07"]
[Round "3"]
[White "Saitama_Hero"]
[Black "j2806"]
[Result "1-0"]
[WhiteElo "2299"]
[BlackElo "1842"]
[TimeControl "180+2"]
[EndTime "13:40:09 PST"]
[Termination "Saitama_Hero won by resignation"]

1. Nf3 {[%clk 0:03:01.9]} 1... Nf6 {[%clk 0:02:59.8]} 2. c4 {[%clk 0:03:01.2]}
2... e6 {[%clk 0:02:59.1]} 3. g3 {[%clk 0:03:02.3]} 3... d5 {[%clk 0:02:58.7]}
4. Bg2 {[%clk 0:03:03.5]} 4... Be7 {[%clk 0:02:57.6]} 5. b3 {[%clk 0:03:05]}
5... O-O {[%clk 0:02:55.7]} 6. O-O {[%clk 0:03:06.5]} 6... c5 {[%clk 0:02:47.1]}
7. Bb2 {[%clk 0:03:06.5]} 7... Nc6 {[%clk 0:02:45.9]} 8. cxd5 {[%clk 0:03:07.8]}
8... exd5 {[%clk 0:02:46.4]} 9. d4 {[%clk 0:03:09.2]} 9... Be6 {[%clk
0:02:29.8]} 10. Nc3 {[%clk 0:03:06.8]} 10... Rc8 {[%clk 0:01:56.2]} 11. Rc1
{[%clk 0:03:05.8]} 11... cxd4 {[%clk 0:01:43.9]} 12. Nxd4 {[%clk 0:03:07.7]}
12... Nxd4 {[%clk 0:01:44.5]} 13. Qxd4 {[%clk 0:03:09.6]} 13... Bc5 {[%clk
0:01:45.4]} 14. Qd2 {[%clk 0:03:10.9]} 14... d4 {[%clk 0:01:44.1]} 15. Na4
{[%clk 0:03:10.9]} 15... Be7 {[%clk 0:01:19]} 16. Bxb7 {[%clk 0:03:09.1]} 16...
Rb8 {[%clk 0:01:09.9]} 17. Bg2 {[%clk 0:03:10.1]} 17... Bd5 {[%clk 0:00:53.9]}
18. Qxd4 {[%clk 0:03:06.3]} 18... Bxg2 {[%clk 0:00:53.6]} 19. Kxg2 {[%clk
0:03:08.2]} 19... Qxd4 {[%clk 0:00:52.8]} 20. Bxd4 {[%clk 0:03:07.4]} 20... Rfd8
{[%clk 0:00:51]} 21. Bxa7 {[%clk 0:03:05.9]} 21... Rb7 {[%clk 0:00:45.4]} 22.
Bb6 {[%clk 0:03:03.8]} 22... Rdb8 {[%clk 0:00:31.6]} 23. Rfd1 {[%clk 0:02:56.6]}
23... Kf8 {[%clk 0:00:21.3]} 24. Bc5 {[%clk 0:02:55.4]} 24... Bxc5 {[%clk
0:00:20.2]} 25. Nxc5 {[%clk 0:02:57.3]} 25... Re7 {[%clk 0:00:19.8]} 26. e3
{[%clk 0:02:54.5]} 26... Ra8 {[%clk 0:00:20.5]} 27. a4 {[%clk 0:02:54.5]} 27...
Rb8 {[%clk 0:00:19.2]} 28. a5 {[%clk 0:02:54.3]} 28... Ne4 {[%clk 0:00:20]} 29.
Nxe4 {[%clk 0:02:53.5]} 29... Rxe4 {[%clk 0:00:20.9]} 30. Rd3 {[%clk 0:02:45.7]}
30... Reb4 {[%clk 0:00:21.2]} 31. a6 {[%clk 0:02:45.6]} 31... Ra8 {[%clk
0:00:21.3]} 32. Ra1 {[%clk 0:02:38]} 32... Rb6 {[%clk 0:00:21.9]} 33. Rd7 {[%clk
0:02:07.8]} 33... Rbxa6 {[%clk 0:00:19.1]} 34. Rxa6 {[%clk 0:02:09.7]} 34...
Rxa6 {[%clk 0:00:19.9]} 35. Rb7 {[%clk 0:02:10.7]} 35... Ra8 {[%clk 0:00:18.3]}
36. f4 {[%clk 0:02:11.6]} 36... Ra2+ {[%clk 0:00:17.7]} 37. Kh3 {[%clk
0:02:10.5]} 37... g6 {[%clk 0:00:17.1]} 38. b4 {[%clk 0:02:10.8]} 38... Kg7
{[%clk 0:00:18.1]} 39. b5 {[%clk 0:02:10.4]} 39... Rb2 {[%clk 0:00:19.1]} 40. e4
{[%clk 0:02:10.3]} 40... Rb4 {[%clk 0:00:19.3]} 41. e5 {[%clk 0:02:11.2]} 41...
Kg8 {[%clk 0:00:18.6]} 42. Kg4 {[%clk 0:02:11.4]} 42... h6 {[%clk 0:00:19.1]}
43. h4 {[%clk 0:02:11.7]} 43... Kf8 {[%clk 0:00:18.9]} 44. h5 {[%clk 0:02:11.7]}
44... g5 {[%clk 0:00:13.4]} 45. Kf5 {[%clk 0:02:09.5]} 45... gxf4 {[%clk
0:00:13.1]} 46. gxf4 {[%clk 0:02:11.4]} 46... Kg8 {[%clk 0:00:13.3]} 47. b6
{[%clk 0:02:07.4]} 47... Kf8 {[%clk 0:00:13.5]} 48. Rb8+ {[%clk 0:01:23.7]}
48... Kg7 {[%clk 0:00:13.7]} 49. Rb7 {[%clk 0:01:24.6]} 49... Kf8 {[%clk
0:00:14.5]} 50. e6 {[%clk 0:01:14]} 50... fxe6+ {[%clk 0:00:15.2]} 51. Ke5
{[%clk 0:01:15.3]} 51... Kg8 {[%clk 0:00:14.3]} 52. Rb8+ {[%clk 0:00:51.2]}
52... Kf7 {[%clk 0:00:14.7]} 53. Rb7+ {[%clk 0:00:53.1]} 53... Kg8 {[%clk
0:00:13.8]} 54. Kf6 {[%clk 0:00:49.8]} 54... Rxf4+ {[%clk 0:00:13.9]} 55. Kg6
{[%clk 0:00:51.1]} 55... Rg4+ {[%clk 0:00:13.1]} 56. Kxh6 {[%clk 0:00:51.8]}
56... Rg3 {[%clk 0:00:12.6]} 57. Rc7 {[%clk 0:00:46]} 57... Rb3 {[%clk
0:00:12.8]} 58. b7 {[%clk 0:00:47.2]} 58... Kf8 {[%clk 0:00:12.9]} 59. Rc8+
{[%clk 0:00:47.4]} 59... Ke7 {[%clk 0:00:13.3]} 60. b8=Q {[%clk 0:00:49.3]} 1-0

[Event "*** Titled Tuesday Blitz"]
[Site "Chess.com"]
[Date "2020.01.07"]
[Round "3"]
[White "Duhless"]
[Black "Rikikits"]
[Result "1-0"]
[WhiteElo "3115"]
[BlackElo "2712"]
[TimeControl "180+2"]
[EndTime "13:40:10 PST"]
[Termination "Duhless won by resignation"]

1. c4 {[%clk 0:03:01.9]} 1... f6 {[%clk 0:03:00.8]} 2. Nc3 {[%clk 0:03:01.6]}
2... Nh6 {[%clk 0:02:59.8]} 3. d4 {[%clk 0:03:01.6]} 3... Nf7 {[%clk 0:03:01.7]}
4. e4 {[%clk 0:03:01.3]} 4... g6 {[%clk 0:03:02.2]} 5. h4 {[%clk 0:03:02]} 5...
d6 {[%clk 0:03:02.1]} 6. h5 {[%clk 0:03:01.9]} 6... g5 {[%clk 0:03:03.4]} 7. Be2
{[%clk 0:03:01]} 7... c5 {[%clk 0:03:03.6]} 8. d5 {[%clk 0:03:01.5]} 8... Ne5
{[%clk 0:03:03.8]} 9. h6 {[%clk 0:03:02]} 9... Nbd7 {[%clk 0:03:00.9]} 10. Bh5+
{[%clk 0:03:02.4]} 10... Ng6 {[%clk 0:03:01.7]} 11. g3 {[%clk 0:03:02]} 11...
Ne5 {[%clk 0:02:55.3]} 12. f4 {[%clk 0:03:02.4]} 12... gxf4 {[%clk 0:02:56.5]}
13. gxf4 {[%clk 0:03:03.3]} 13... Nf7 {[%clk 0:02:58.1]} 14. Nf3 {[%clk
0:03:01.7]} 14... Bxh6 {[%clk 0:02:46.3]} 15. f5 {[%clk 0:02:39.7]} 15... Bxc1
{[%clk 0:02:46.1]} 16. Rxc1 {[%clk 0:02:32.7]} 16... Kd7 {[%clk 0:01:55.9]} 17.
fxg6 {[%clk 0:02:26.4]} 17... hxg6 {[%clk 0:01:57.8]} 18. Bg4+ {[%clk
0:02:26.7]} 18... Kc7 {[%clk 0:01:55.5]} 19. Nb5+ {[%clk 0:02:26.7]} 19... Kb8
{[%clk 0:01:56.2]} 20. Rxh8 {[%clk 0:02:27.5]} 20... Qxh8 {[%clk 0:01:58.1]} 21.
Bxc8 {[%clk 0:02:28.2]} 21... Kxc8 {[%clk 0:01:59.1]} 22. Kf2 {[%clk 0:02:23.1]}
22... a6 {[%clk 0:01:58.3]} 23. Nc3 {[%clk 0:02:21]} 23... Kc7 {[%clk
0:01:57.7]} 24. Qh1 {[%clk 0:02:18.5]} 24... Qg7 {[%clk 0:01:58]} 25. Ne2 {[%clk
0:02:16.9]} 25... Rh8 {[%clk 0:01:58.9]} 26. Qg2 {[%clk 0:02:17.3]} 26... Kb8
{[%clk 0:01:49.4]} 27. Rh1 {[%clk 0:02:00.6]} 27... Rxh1 {[%clk 0:01:45.2]} 28.
Qxh1 {[%clk 0:02:02.5]} 28... Ng5 {[%clk 0:01:46.2]} 29. Nxg5 {[%clk 0:01:52.5]}
29... fxg5 {[%clk 0:01:48.1]} 30. Qc1 {[%clk 0:01:41.6]} 30... Qf6+ {[%clk
0:01:47.4]} 31. Kg2 {[%clk 0:01:20]} 31... g4 {[%clk 0:01:46.8]} 32. Qc3 {[%clk
0:01:16.3]} 32... Qg5 {[%clk 0:01:47.8]} 33. a3 {[%clk 0:01:08.3]} 33... a5
{[%clk 0:01:45]} 34. b3 {[%clk 0:00:54.4]} 34... Qh6 {[%clk 0:01:38]} 35. Qg3
{[%clk 0:00:37.6]} 35... Qd2 {[%clk 0:01:37.7]} 36. Qxg4 {[%clk 0:00:36.7]}
36... Qb2 {[%clk 0:01:27.9]} 37. Qf3 {[%clk 0:00:37.3]} 37... Qxa3 {[%clk
0:01:28.2]} 38. Qf8+ {[%clk 0:00:34.7]} 38... Ka7 {[%clk 0:01:29.4]} 39. Qxe7
{[%clk 0:00:35.8]} 39... Qb2 {[%clk 0:01:28.9]} 40. Kf2 {[%clk 0:00:34.4]} 40...
Qxb3 {[%clk 0:01:25.5]} 41. e5 {[%clk 0:00:27.1]} 41... dxe5 {[%clk 0:01:10.6]}
42. d6 {[%clk 0:00:25.7]} 42... e4 {[%clk 0:01:10.3]} 43. d7 {[%clk 0:00:24.1]}
43... Qf3+ {[%clk 0:01:10.5]} 44. Ke1 {[%clk 0:00:24.8]} 44... e3 {[%clk
0:01:09.5]} 45. Qxc5+ {[%clk 0:00:22]} 45... b6 {[%clk 0:01:08.7]} 46. Qc7+
{[%clk 0:00:10.1]} 46... Ka6 {[%clk 0:01:09.9]} 47. Qc8+ {[%clk 0:00:11.4]}
47... Ka7 {[%clk 0:01:10.7]} 48. d8=Q {[%clk 0:00:07.1]} 48... Qf2+ {[%clk
0:01:11.7]} 49. Kd1 {[%clk 0:00:07.3]} 49... Qf1+ {[%clk 0:01:12.6]} 50. Kc2
{[%clk 0:00:08.8]} 50... Qxe2+ {[%clk 0:01:14.2]} 51. Kc3 {[%clk 0:00:10.4]}
51... Qe1+ {[%clk 0:01:15.1]} 52. Kd3 {[%clk 0:00:09.7]} 52... Qd1+ {[%clk
0:01:07.4]} 53. Kxe3 {[%clk 0:00:10.7]} 53... Qe1+ {[%clk 0:01:05.8]} 54. Kd4
{[%clk 0:00:11.5]} 54... Qf2+ {[%clk 0:01:02.6]} 55. Kd5 {[%clk 0:00:11]} 55...
Qf3+ {[%clk 0:01:02.8]} 56. Kd6 {[%clk 0:00:09.7]} 56... Qf4+ {[%clk 0:01:00.7]}
57. Ke7 {[%clk 0:00:08.5]} 57... Qh4+ {[%clk 0:00:59.6]} 58. Kf7 {[%clk
0:00:08.7]} 58... Qh7+ {[%clk 0:01:00.5]} 59. Kf6 {[%clk 0:00:09.8]} 59... Qh4+
{[%clk 0:00:58.7]} 60. Kg7 {[%clk 0:00:10.8]} 1-0

[Event "*** Titled Tuesday Blitz"]
[Site "Chess.com"]
[Date "2020.01.07"]
[Round "3"]
[White "Atakishiyev04"]
[Black "BIG_Pirate"]
[Result "1-0"]
[WhiteElo "2727"]
[BlackElo "2422"]
[TimeControl "180+2"]
[EndTime "13:40:13 PST"]
[Termination "Atakishiyev04 won on time"]

1. d4 {[%clk 0:03:01.9]} 1... d5 {[%clk 0:03:00.3]} 2. c4 {[%clk 0:02:56.1]}
2... c6 {[%clk 0:03:01.1]} 3. Nf3 {[%clk 0:02:56.5]} 3... dxc4 {[%clk 0:03:02]}
4. a4 {[%clk 0:02:54.5]} 4... Nf6 {[%clk 0:02:52.6]} 5. Nc3 {[%clk 0:02:51.7]}
5... e6 {[%clk 0:02:48.3]} 6. e3 {[%clk 0:02:46.7]} 6... c5 {[%clk 0:02:48.8]}
7. Bxc4 {[%clk 0:02:41.6]} 7... Nc6 {[%clk 0:02:40.9]} 8. O-O {[%clk 0:02:41.3]}
8... Be7 {[%clk 0:02:40.3]} 9. Qe2 {[%clk 0:02:41.2]} 9... cxd4 {[%clk
0:02:40.8]} 10. Rd1 {[%clk 0:02:41.3]} 10... O-O {[%clk 0:02:40.5]} 11. exd4
{[%clk 0:02:36]} 11... Nb4 {[%clk 0:02:40.9]} 12. Bb3 {[%clk 0:02:24.2]} 12...
Nbd5 {[%clk 0:02:35.7]} 13. Bg5 {[%clk 0:02:20.5]} 13... h6 {[%clk 0:02:34]} 14.
Bh4 {[%clk 0:02:20.6]} 14... Bd7 {[%clk 0:02:16.7]} 15. Rac1 {[%clk 0:02:13.7]}
15... Bc6 {[%clk 0:02:15.7]} 16. Bg3 {[%clk 0:02:12.1]} 16... Rc8 {[%clk
0:02:09.3]} 17. Ne5 {[%clk 0:02:11.2]} 17... Nxc3 {[%clk 0:01:11.2]} 18. bxc3
{[%clk 0:02:03.8]} 18... Ba3 {[%clk 0:01:11.5]} 19. Ra1 {[%clk 0:02:01.2]} 19...
Bd6 {[%clk 0:01:09.9]} 20. Nxf7 {[%clk 0:01:43.2]} 20... Rxf7 {[%clk 0:00:51.7]}
21. Qxe6 {[%clk 0:01:42.9]} 21... Bd5 {[%clk 0:00:35.4]} 22. Bxd5 {[%clk
0:01:33.2]} 22... Nxd5 {[%clk 0:00:37.3]} 23. Qxd5 {[%clk 0:01:34.4]} 23... Bxg3
{[%clk 0:00:36.9]} 24. Qxd8+ {[%clk 0:01:35.2]} 24... Rxd8 {[%clk 0:00:37.8]}
25. hxg3 {[%clk 0:01:37.1]} 25... Rc7 {[%clk 0:00:39]} 26. Rab1 {[%clk
0:01:29.2]} 26... b6 {[%clk 0:00:39.9]} 27. Rd3 {[%clk 0:01:30]} 27... Rd5
{[%clk 0:00:39.6]} 28. Rb5 {[%clk 0:01:29]} 28... Rd6 {[%clk 0:00:34.2]} 29. a5
{[%clk 0:01:24.2]} 29... Re7 {[%clk 0:00:22.7]} 30. axb6 {[%clk 0:01:19.3]}
30... axb6 {[%clk 0:00:24.6]} 31. Re3 {[%clk 0:01:18.7]} 31... Ra7 {[%clk
0:00:24.3]} 32. Rb3 {[%clk 0:01:16.6]} 32... Rd5 {[%clk 0:00:16.8]} 33. g4
{[%clk 0:01:15]} 33... b5 {[%clk 0:00:16.3]} 34. f4 {[%clk 0:01:11.6]} 34... Ra2
{[%clk 0:00:09.1]} 35. Re5 {[%clk 0:01:08.5]} 35... Rxe5 {[%clk 0:00:10.1]} 36.
fxe5 {[%clk 0:01:04.2]} 36... Rc2 {[%clk 0:00:11.3]} 37. d5 {[%clk 0:01:03.4]}
37... Kf7 {[%clk 0:00:10.6]} 38. Rxb5 {[%clk 0:01:01.8]} 38... Rxc3 {[%clk
0:00:11.6]} 39. Rb7+ {[%clk 0:01:02.8]} 39... Kf8 {[%clk 0:00:13.2]} 40. d6
{[%clk 0:01:02.8]} 40... Rd3 {[%clk 0:00:12.2]} 41. Rb8+ {[%clk 0:01:04.4]}
41... Kf7 {[%clk 0:00:13]} 42. Rb7+ {[%clk 0:00:59.7]} 42... Kf8 {[%clk
0:00:14]} 43. Kf2 {[%clk 0:00:56]} 43... Rd5 {[%clk 0:00:13.6]} 44. Re7 {[%clk
0:00:56.7]} 44... g6 {[%clk 0:00:05.5]} 45. Ke3 {[%clk 0:00:56]} 45... Rd1
{[%clk 0:00:06.6]} 46. Ke4 {[%clk 0:00:56.9]} 46... Rd2 {[%clk 0:00:06.9]} 47.
g5 {[%clk 0:00:55.6]} 47... hxg5 {[%clk 0:00:07.3]} 48. g4 {[%clk 0:00:56.8]}
48... Rd1 {[%clk 0:00:08.2]} 49. Re6 {[%clk 0:00:57.5]} 49... Kf7 {[%clk
0:00:07.3]} 50. Rf6+ {[%clk 0:00:57.6]} 50... Kg7 {[%clk 0:00:08.1]} 51. Rf2
{[%clk 0:00:56.6]} 51... Kg8 {[%clk 0:00:07.6]} 52. Rf3 {[%clk 0:00:54.2]} 52...
Kg7 {[%clk 0:00:04.8]} 53. Rd3 {[%clk 0:00:54.9]} 53... Re1+ {[%clk 0:00:05.2]}
54. Kd5 {[%clk 0:00:56.1]} 54... Kf7 {[%clk 0:00:07.1]} 55. Rf3+ {[%clk
0:00:51.2]} 55... Ke8 {[%clk 0:00:07.9]} 56. Ke6 {[%clk 0:00:52.2]} 1-0

[Event "*** Titled Tuesday Blitz"]
[Site "Chess.com"]
[Date "2020.01.07"]
[Round "3"]
[White "IgorBjelobrk"]
[Black "chess3054"]
[Result "1-0"]
[WhiteElo "2636"]
[BlackElo "2414"]
[TimeControl "180+2"]
[EndTime "13:40:17 PST"]
[Termination "IgorBjelobrk won by checkmate"]

1. d4 {[%clk 0:02:53.5]} 1... e6 {[%clk 0:03:00]} 2. c4 {[%clk 0:02:53.9]} 2...
Bb4+ {[%clk 0:02:59.8]} 3. Nc3 {[%clk 0:02:53.8]} 3... Nf6 {[%clk 0:02:59.3]} 4.
g3 {[%clk 0:02:53.7]} 4... O-O {[%clk 0:02:55.3]} 5. Bg2 {[%clk 0:02:54.3]} 5...
d5 {[%clk 0:02:54.4]} 6. Nf3 {[%clk 0:02:54.6]} 6... b6 {[%clk 0:02:51.6]} 7.
cxd5 {[%clk 0:02:53.4]} 7... exd5 {[%clk 0:02:51.5]} 8. O-O {[%clk 0:02:53.7]}
8... Bb7 {[%clk 0:02:52.2]} 9. Bf4 {[%clk 0:02:51.8]} 9... a6 {[%clk 0:02:50.4]}
10. Rc1 {[%clk 0:02:51.9]} 10... Bd6 {[%clk 0:02:40.3]} 11. Be5 {[%clk
0:02:44.3]} 11... Ne4 {[%clk 0:02:27.6]} 12. e3 {[%clk 0:02:38.8]} 12... f6
{[%clk 0:02:19.8]} 13. Bxd6 {[%clk 0:02:35.3]} 13... Qxd6 {[%clk 0:02:21.7]} 14.
Qb3 {[%clk 0:02:24.9]} 14... Kh8 {[%clk 0:02:08.8]} 15. Rc2 {[%clk 0:02:20.1]}
15... Nd7 {[%clk 0:02:08.5]} 16. Rfc1 {[%clk 0:02:20.4]} 16... Rac8 {[%clk
0:02:04.5]} 17. Bh3 {[%clk 0:02:19.4]} 17... c5 {[%clk 0:01:33.3]} 18. dxc5
{[%clk 0:01:48.5]} 18... Ndxc5 {[%clk 0:01:31.4]} 19. Qb4 {[%clk 0:01:36.3]}
19... Rcd8 {[%clk 0:01:19.7]} 20. Rd1 {[%clk 0:01:30.3]} 20... Ng5 {[%clk
0:01:03.3]} 21. Bg2 {[%clk 0:01:20]} 21... Nxf3+ {[%clk 0:00:51.1]} 22. Bxf3
{[%clk 0:01:20.3]} 22... Qe6 {[%clk 0:00:52.1]} 23. Rcd2 {[%clk 0:01:04.6]}
23... a5 {[%clk 0:00:39.1]} 24. Qh4 {[%clk 0:00:50.9]} 24... Qe7 {[%clk
0:00:24.9]} 25. Nxd5 {[%clk 0:00:49.5]} 25... Bxd5 {[%clk 0:00:25.1]} 26. Rxd5
{[%clk 0:00:45.4]} 26... Rxd5 {[%clk 0:00:26.1]} 27. Rxd5 {[%clk 0:00:46.2]}
27... Rd8 {[%clk 0:00:27.5]} 28. Qd4 {[%clk 0:00:45.1]} 28... Rxd5 {[%clk
0:00:28.3]} 29. Qxd5 {[%clk 0:00:47]} 29... g6 {[%clk 0:00:29.5]} 30. Qc6 {[%clk
0:00:44]} 30... Kg7 {[%clk 0:00:20.3]} 31. Qxb6 {[%clk 0:00:43]} 31... Kh6
{[%clk 0:00:20.9]} 32. Qxa5 {[%clk 0:00:42.8]} 32... Qd6 {[%clk 0:00:22.5]} 33.
Qc3 {[%clk 0:00:41.3]} 33... Ne6 {[%clk 0:00:21.6]} 34. b4 {[%clk 0:00:41.3]}
34... Ng5 {[%clk 0:00:22.8]} 35. Be2 {[%clk 0:00:31]} 35... f5 {[%clk
0:00:22.6]} 36. h4 {[%clk 0:00:31.3]} 36... Ne4 {[%clk 0:00:23.3]} 37. Qd4
{[%clk 0:00:32.2]} 37... Qc7 {[%clk 0:00:24.2]} 38. Bf3 {[%clk 0:00:32.9]} 38...
Qc1+ {[%clk 0:00:24.6]} 39. Kg2 {[%clk 0:00:33.9]} 39... Nd2 {[%clk 0:00:26.2]}
40. Be2 {[%clk 0:00:31.8]} 40... Qe1 {[%clk 0:00:26.8]} 41. Bd3 {[%clk
0:00:19.2]} 41... Qd1 {[%clk 0:00:20.1]} 42. Qd5 {[%clk 0:00:18]} 42... Qa1
{[%clk 0:00:13.7]} 43. b5 {[%clk 0:00:18.5]} 43... Qb2 {[%clk 0:00:09.8]} 44. a4
{[%clk 0:00:19.1]} 44... Qb4 {[%clk 0:00:06.3]} 45. Qa8 {[%clk 0:00:15]} 45...
Kg7 {[%clk 0:00:04.5]} 46. a5 {[%clk 0:00:13.5]} 46... Qc3 {[%clk 0:00:04.3]}
47. Qb7+ {[%clk 0:00:12.9]} 47... Kh6 {[%clk 0:00:04.9]} 48. Qd5 {[%clk
0:00:10.3]} 48... Nb3 {[%clk 0:00:04.5]} 49. a6 {[%clk 0:00:10.6]} 49... Nc5
{[%clk 0:00:05]} 50. a7 {[%clk 0:00:10]} 50... Nxd3 {[%clk 0:00:06.4]} 51. a8=Q
{[%clk 0:00:10]} 51... Ne1+ {[%clk 0:00:07.9]} 52. Kf1 {[%clk 0:00:11.2]} 52...
Nd3 {[%clk 0:00:08]} 53. Qf8+ {[%clk 0:00:11.2]} 53... Kh5 {[%clk 0:00:09.3]}
54. Qf3# {[%clk 0:00:12.2]} 1-0